fUST/lending_fUST_20250717
["ID","MTS","AMOUNT","RATE_DAILY","PERIOD"]
[372612670,1752705041859,-537.12903457,0.00019011,2]
[372612671,1752705041868,-460.0,0.00019011,2]
[372612672,1752705041881,-460.0,0.00019011,2]
[372612673,1752705041891,-460.0,0.00019011,2]
[372612674,1752705041900,-460.0,0.00019011,2]
[372612675,1752705041911,-460.0,0.00019011,2]
[372612676,1752705041922,-460.0,0.00019011,2]
[372612677,1752705041932,-460.0,0.00019011,2]
[372612678,1752705041941,-460.0,0.00019011,2]
[372612679,1752705041953,-460.0,0.00019011,2]
[372612680,1752705041963,-460.0,0.00019011,2]
[372612681,1752705041973,-460.0,0.00019011,2]
[372612682,1752705041983,-460.0,0.00019011,2]
[372612683,1752705041993,-211.59,0.00019011,2]
[372612684,1752705042003,-460.0,0.00019011,2]
[372612685,1752705042013,-218.7146384,0.00019178,2]
[372612686,1752705042023,-460.0,0.00019279,2]
[372612687,1752705042032,-460.0,0.0001928,2]
[372612688,1752705042042,-460.0,0.0001928,2]
[372612689,1752705042054,-460.0,0.00019281,2]
[372612690,1752705042064,-460.0,0.00019281,2]
[372612691,1752705042073,-487.2,0.00019281,2]
[372612692,1752705042083,-460.0,0.00019281,2]
[372612693,1752705042093,-460.0,0.00019281,2]
[372612694,1752705042102,-460.0,0.00019281,2]
[372612695,1752705042112,-460.0,0.00019283,2]
[372612696,1752705042122,-460.0,0.00019283,2]
[372612697,1752705042141,-460.0,0.00019283,2]
[372612698,1752705042151,-460.0,0.00019283,2]
[372612699,1752705042162,-460.0,0.00019283,2]
[372612700,1752705042173,-460.0,0.00019285,2]
[372612701,1752705042183,-460.0,0.00019285,2]
[372612702,1752705042193,-460.0,0.00019285,2]
[372612703,1752705042203,-460.0,0.00019285,2]
[372612704,1752705042213,-460.0,0.00019285,2]
[372612705,1752705042223,-465.19,0.00019285,2]
[372612706,1752705042232,-460.0,0.00019285,2]
[372612707,1752705042242,-460.0,0.00019285,2]
[372612708,1752705042254,-460.0,0.00019285,2]
[372612709,1752705042266,-460.0,0.00019285,2]
[372612710,1752705042276,-460.0,0.00019285,2]
[372612711,1752705042288,-460.0,0.00019285,2]
[372612712,1752705042299,-1000.0,0.00019321,2]
[372612713,1752705042308,-500.0,0.00019367,2]
[372612714,1752705042318,-460.0,0.00019554,2]
[372612715,1752705042328,-460.0,0.00019554,2]
[372612716,1752705042338,-460.0,0.00019555,2]
[372612717,1752705042348,-487.2,0.00019555,2]
[372612718,1752705042358,-460.0,0.00019555,2]
[372612719,1752705042368,-460.0,0.00019555,2]
[372612720,1752705042380,-460.0,0.00019555,2]
[372612721,1752705042390,-460.0,0.00019557,2]
[372612722,1752705042400,-460.0,0.00019557,2]
[372612723,1752705042410,-460.0,0.00019557,2]
[372612724,1752705042420,-460.0,0.00019559,2]
[372612725,1752705042430,-460.0,0.00019559,2]
[372612726,1752705042443,-460.0,0.00019559,2]
[372612727,1752705042453,-527.50479302,0.00019559,2]
[372612728,1752705042463,-460.0,0.00019559,2]
[372612729,1752705042473,-460.0,0.00019559,2]
[372612730,1752705042484,-460.0,0.00019559,2]
[372612731,1752705042494,-460.0,0.00019559,2]
[372612733,1752705042504,-460.0,0.00019559,2]
[372612735,1752705042513,-460.0,0.00019559,2]
[372612737,1752705042523,-460.0,0.00019559,2]
[372612738,1752705042532,-263.17164971,0.00019655,2]
[372612740,1752705042541,-460.0,0.00019828,2]
[372612742,1752705042551,-460.0,0.00019828,2]
[372612744,1752705042560,-487.2,0.00019829,2]
[372612746,1752705042569,-460.0,0.00019829,2]
[372612747,1752705042579,-460.0,0.00019829,2]
[372612749,1752705042588,-460.0,0.00019829,2]
[372612750,1752705042597,-460.0,0.00019831,2]
[372612751,1752705042607,-460.0,0.00019831,2]
[372612752,1752705042617,-460.0,0.00019833,2]
[372612753,1752705042626,-460.0,0.00019833,2]
[372612754,1752705042637,-460.0,0.00019833,2]
[372612755,1752705042646,-460.0,0.00019833,2]
[372612756,1752705042656,-460.0,0.00019833,2]
[372612757,1752705042665,-353.51893381,0.00019833,2]
[372612758,1752705042676,-460.0,0.00019833,2]
[372612760,1752705042686,-460.0,0.00019833,2]
[372612761,1752705042695,-460.0,0.00019833,2]
[372612762,1752705042705,-460.0,0.00019833,2]
[372612764,1752705042715,-1500.0,0.00019868,2]
[372612765,1752705042725,-659.29964267,0.000199,2]
[372612766,1752705042735,-1000.0,0.00019915,2]
[372612767,1752705042745,-305.15517548,0.00019973,2]
[372612768,1752705042755,-47892.47257662,0.00019989,2]
[372612771,1752705042825,165.451045,0.00018148,2]
[372612814,1752705043231,-555.59550936,0.00018735,2]
[372612871,1752705284367,1005.2034789,0.00018082,2]
[372612873,1752705391277,271.208512,0.00013699,2]
[372612874,1752705402967,19171.92886039,0.00017732,2]
[372612875,1752705402991,4197.91070871,0.00017732,2]
[372612876,1752705491895,379.19891384,0.00018168,2]
[372612879,1752705724652,10000.0,0.00017729,2]
[372612881,1752705794172,227.5193483,0.00018167,2]
[372612882,1752705809320,168.489629,0.00017871,2]
[372612886,1752705911028,24900.0,0.00017739,2]
[372612887,1752706029144,-150.0,0.00018626,2]
[372612888,1752706029168,-150.0,0.00018627,2]
[372612889,1752706029189,-150.0,0.00018628,2]
[372612892,1752706106869,126.88140015,0.00017727,2]
[372612893,1752706106893,38.56964485,0.00017727,2]
[372612895,1752706152667,391.5292759,0.00017868,2]
[372612924,1752706232446,-736.77192661,0.00018627,2]
[372612925,1752706232456,-199.52533278,0.00018629,2]
[372612926,1752706232466,-200.0,0.00018724,2]
[372612927,1752706232476,-500.0,0.00018724,2]
[372612928,1752706232486,-292.83191825,0.00018724,2]
[372612929,1752706232496,-500.0,0.00018724,2]
[372612931,1752706232506,-200.0,0.00018724,2]
[372612933,1752706232515,-233.74003007,0.00018724,2]
[372612935,1752706232525,-500.0,0.00018724,2]
[372612937,1752706232535,-500.0,0.00018724,2]
[372612940,1752706232544,-300.0,0.00018725,2]
[372612942,1752706232554,-300.0,0.00018725,2]
[372612943,1752706232563,-300.0,0.00018725,2]
[372612945,1752706232573,-169.84919343,0.00018725,2]
[372612946,1752706232584,-596.46,0.00018725,2]
[372613024,1752706238746,-433.69080657,0.00018725,2]
[372613026,1752706238756,-30346.13306731,0.00018725,2]
[372613028,1752706238765,-460.0,0.00018726,2]
[372613030,1752706238775,-460.0,0.00018726,2]
[372613032,1752706238784,-460.0,0.00018726,2]
[372613034,1752706238793,-461.56965351,0.00018727,2]
[372613036,1752706238803,-460.0,0.00018727,2]
[372613037,1752706238813,-460.0,0.00018727,2]
[372613039,1752706238822,-460.0,0.00018727,2]
[372613042,1752706238832,-460.0,0.00018727,2]
[372613043,1752706238842,-460.0,0.00018727,2]
[372613046,1752706238852,-460.0,0.00018727,2]
[372613047,1752706238862,-460.0,0.00018727,2]
[372613049,1752706238871,-460.0,0.00018727,2]
[372613051,1752706238881,-460.0,0.00018727,2]
[372613054,1752706238891,-460.0,0.00018727,2]
[372613055,1752706238900,-460.0,0.00018727,2]
[372613057,1752706238910,-460.0,0.00018727,2]
[372613059,1752706238921,-460.0,0.00018727,2]
[372613062,1752706238931,-460.0,0.00018727,2]
[372613064,1752706238942,-460.0,0.00018727,2]
[372613065,1752706238951,-460.0,0.00018727,2]
[372613067,1752706238961,-298.02569367,0.00018728,2]
[372613069,1752706238971,-384.83249939,0.00018728,2]
[372613072,1752706238980,-479.45815707,0.00018728,2]
[372613073,1752706238990,-460.0,0.00018728,2]
[372613075,1752706238999,-460.0,0.00018728,2]
[372613077,1752706239009,-460.0,0.00018728,2]
[372613079,1752706239019,-460.0,0.00018728,2]
[372613082,1752706239028,-460.0,0.00018728,2]
[372613083,1752706239038,-460.0,0.00018728,2]
[372613085,1752706239047,-460.0,0.00018728,2]
[372613087,1752706239056,-460.0,0.00018728,2]
[372613089,1752706239066,-460.0,0.00018728,2]
[372613091,1752706239075,-460.0,0.00018728,2]
[372613093,1752706239085,-839.01,0.00018728,2]
[372613095,1752706239094,-460.0,0.00018728,2]
[372613097,1752706239104,-460.0,0.00018728,2]
[372613099,1752706239113,-460.0,0.00018728,2]
[372613101,1752706239124,-460.0,0.00018728,2]
[372613103,1752706239134,-460.0,0.00018728,2]
[372613105,1752706239143,-460.0,0.00018728,2]
[372613107,1752706239153,-460.0,0.00018728,2]
[372613109,1752706239162,-460.0,0.00018728,2]
[372613111,1752706239172,-460.0,0.00018728,2]
[372613113,1752706239181,-460.0,0.00018728,2]
[372613115,1752706239192,-460.0,0.00018728,2]
[372613117,1752706239201,-294.99461569,0.00018729,2]
[372613119,1752706239211,-500.0,0.00018729,2]
[372613122,1752706239225,-465.95814815,0.00018729,2]
[372613123,1752706239239,-460.0,0.00018729,2]
[372613125,1752706239249,-460.0,0.00018729,2]
[372613128,1752706239259,-462.63517024,0.00018729,2]
[372613129,1752706239270,-460.0,0.00018729,2]
[372613131,1752706239281,-460.0,0.00018729,2]
[372613133,1752706239293,-460.0,0.00018729,2]
[372613136,1752706239304,-460.0,0.00018729,2]
[372613137,1752706239319,-460.0,0.00018729,2]
[372613140,1752706239329,-460.0,0.00018729,2]
[372613141,1752706239338,-460.0,0.00018729,2]
[372613144,1752706239348,-460.0,0.00018729,2]
[372613145,1752706239357,-460.0,0.00018729,2]
[372613148,1752706239367,-460.0,0.00018729,2]
[372613150,1752706239377,-460.0,0.00018729,2]
[372613151,1752706239386,-460.0,0.00018729,2]
[372613154,1752706239397,-460.0,0.00018729,2]
[372613155,1752706239407,-460.0,0.00018729,2]
[372613157,1752706239416,-460.0,0.00018729,2]
[372613159,1752706239427,-460.0,0.00018729,2]
[372613161,1752706239437,-460.0,0.00018729,2]
[372613163,1752706239448,-460.0,0.00018729,2]
[372613165,1752706239457,-460.0,0.00018729,2]
[372613167,1752706239467,-460.0,0.00018729,2]
[372613169,1752706239476,-460.0,0.00018729,2]
[372613171,1752706239486,-460.0,0.00018729,2]
[372613173,1752706239495,-460.0,0.00018729,2]
[372613175,1752706239506,-460.0,0.0001873,2]
[372613177,1752706239515,-460.0,0.0001873,2]
[372613180,1752706239525,-460.0,0.0001873,2]
[372613182,1752706239536,-460.0,0.0001873,2]
[372613184,1752706239546,-460.0,0.0001873,2]
[372613186,1752706239555,-460.0,0.0001873,2]
[372613188,1752706239564,-460.0,0.0001873,2]
[372613189,1752706239574,-460.0,0.0001873,2]
[372613192,1752706239584,-460.0,0.0001873,2]
[372613194,1752706239594,-460.0,0.0001873,2]
[372613195,1752706239604,-460.0,0.0001873,2]
[372613197,1752706239613,-460.0,0.0001873,2]
[372613199,1752706239623,-460.0,0.0001873,2]
[372613201,1752706239633,-460.0,0.0001873,2]
[372613203,1752706239643,-460.0,0.0001873,2]
[372613205,1752706239653,-460.0,0.0001873,2]
[372613207,1752706239662,-670.56,0.0001873,2]
[372613209,1752706239672,-460.0,0.00018731,2]
[372613211,1752706239682,-460.0,0.00018731,2]
[372613213,1752706239694,-460.0,0.00018731,2]
[372613215,1752706239705,-460.0,0.00018731,2]
[372613217,1752706239714,-460.0,0.00018731,2]
[372613219,1752706239724,-460.0,0.00018731,2]
[372613221,1752706239734,-460.0,0.00018731,2]
[372613223,1752706239744,-460.0,0.00018731,2]
[372613225,1752706239754,-460.0,0.00018731,2]
[372613228,1752706239763,-460.0,0.00018731,2]
[372613231,1752706239773,-508.47,0.00018731,2]
[372613232,1752706239783,-460.0,0.00018731,2]
[372613235,1752706239793,-460.0,0.00018731,2]
[372613236,1752706239802,-460.0,0.00018731,2]
[372613239,1752706239811,-460.0,0.00018731,2]
[372613241,1752706239821,-1152.93,0.00018732,2]
[372613243,1752706239831,-460.0,0.00018732,2]
[372613245,1752706239841,-460.0,0.00018734,2]
[372613247,1752706239851,-460.0,0.00018734,2]
[372613249,1752706239862,-460.0,0.00018734,2]
[372613251,1752706239871,-460.0,0.00018734,2]
[372613253,1752706239883,-460.0,0.00018734,2]
[372613255,1752706239894,-460.0,0.00018734,2]
[372613257,1752706239903,-620.34,0.00018734,2]
[372613259,1752706239913,-460.0,0.00018734,2]
[372613261,1752706239922,-460.0,0.00018734,2]
[372613263,1752706239932,-460.0,0.00018735,2]
[372613265,1752706239944,-460.0,0.00018735,2]
[372613267,1752706239954,-460.0,0.00018735,2]
[372613269,1752706239963,-460.0,0.00018735,2]
[372613271,1752706239972,-460.0,0.00018737,2]
[372613273,1752706239982,-500.0,0.00018773,2]
[372613275,1752706239991,-500.0,0.00018773,2]
[372613277,1752706240001,-500.0,0.00018773,2]
[372613278,1752706240010,-247.88840812,0.00018773,2]
[372613280,1752706240019,-502.32431203,0.00018773,2]
[372613282,1752706240029,-500.0,0.00018773,2]
[372613284,1752706240038,-1000.0,0.00018842,2]
[372613286,1752706240048,-2451.12435186,0.000189,2]
[372613288,1752706240058,-18029.49897484,0.00018909,2]
[372613290,1752706240068,-460.0,0.00019001,2]
[372613292,1752706240078,-460.0,0.00019001,2]
[372613294,1752706240087,-460.0,0.00019001,2]
[372613296,1752706240096,-460.0,0.00019001,2]
[372613298,1752706240106,-460.0,0.00019001,2]
[372613300,1752706240116,-460.0,0.00019001,2]
[372613302,1752706240126,-460.0,0.00019002,2]
[372613304,1752706240135,-460.0,0.00019002,2]
[372613306,1752706240145,-460.0,0.00019002,2]
[372613308,1752706240154,-839.01,0.00019002,2]
[372613310,1752706240163,-460.0,0.00019002,2]
[372613312,1752706240173,-460.0,0.00019002,2]
[372613314,1752706240183,-460.0,0.00019002,2]
[372613316,1752706240194,-460.0,0.00019002,2]
[372613318,1752706240204,-460.0,0.00019002,2]
[372613320,1752706240213,-460.0,0.00019002,2]
[372613322,1752706240223,-460.0,0.00019002,2]
[372613324,1752706240236,-460.0,0.00019003,2]
[372613326,1752706240245,-460.0,0.00019003,2]
[372613328,1752706240255,-460.0,0.00019003,2]
[372613330,1752706240264,-460.0,0.00019003,2]
[372613332,1752706240274,-460.0,0.00019003,2]
[372613334,1752706240284,-460.0,0.00019003,2]
[372613336,1752706240293,-460.0,0.00019003,2]
[372613338,1752706240302,-460.0,0.00019003,2]
[372613340,1752706240313,-460.0,0.00019003,2]
[372613342,1752706240323,-460.0,0.00019003,2]
[372613344,1752706240332,-460.0,0.00019003,2]
[372613346,1752706240342,-460.0,0.00019003,2]
[372613348,1752706240352,-460.0,0.00019003,2]
[372613350,1752706240362,-460.0,0.00019003,2]
[372613352,1752706240371,-460.0,0.00019004,2]
[372613354,1752706240381,-460.0,0.00019004,2]
[372613356,1752706240390,-460.0,0.00019004,2]
[372613358,1752706240400,-460.0,0.00019004,2]
[372613360,1752706240410,-460.0,0.00019004,2]
[372613362,1752706240419,-670.56,0.00019004,2]
[372613364,1752706240429,-460.0,0.00019005,2]
[372613366,1752706240438,-460.0,0.00019005,2]
[372613368,1752706240449,-460.0,0.00019005,2]
[372613370,1752706240459,-460.0,0.00019005,2]
[372613372,1752706240468,-460.0,0.00019005,2]
[372613374,1752706240478,-460.0,0.00019005,2]
[372613376,1752706240488,-164.22,0.00019005,2]
[372613378,1752706240498,-460.0,0.00019005,2]
[372613380,1752706240508,-460.0,0.00019005,2]
[372613382,1752706240517,-460.0,0.00019005,2]
[372613384,1752706240527,-1152.93,0.00019006,2]
[372613386,1752706240537,-460.0,0.00019006,2]
[372613388,1752706240547,-460.0,0.00019008,2]
[372613390,1752706240557,-460.0,0.00019008,2]
[372613392,1752706240566,-460.0,0.00019008,2]
[372613394,1752706240576,-460.0,0.00019008,2]
[372613396,1752706240587,-620.34,0.00019008,2]
[372613398,1752706240597,-566.11,0.00019008,2]
[372613400,1752706240606,-460.0,0.00019008,2]
[372613402,1752706240616,-460.0,0.00019009,2]
[372613404,1752706240625,-460.0,0.00019009,2]
[372613406,1752706240635,-603.10024688,0.00019178,2]
[372613408,1752706240645,-6570.8035013,0.00019178,2]
[372613410,1752706240656,-460.0,0.00019275,2]
[372613412,1752706240666,-460.0,0.00019275,2]
[372613414,1752706240676,-460.0,0.00019276,2]
[372613417,1752706240693,-460.0,0.00019276,2]
[372613420,1752706240709,-839.01,0.00019276,2]
[372613422,1752706240719,-409.02,0.00019276,2]
[372613424,1752706240728,-460.0,0.00019276,2]
[372613426,1752706240738,-460.0,0.00019276,2]
[372613428,1752706240747,-460.0,0.00019276,2]
[372613430,1752706240757,-460.0,0.00019276,2]
[372613432,1752706240766,-460.0,0.00019277,2]
[372613434,1752706240776,-460.0,0.00019277,2]
[372613436,1752706240786,-460.0,0.00019277,2]
[372613438,1752706240796,-460.0,0.00019277,2]
[372613440,1752706240805,-586.88,0.00019277,2]
[372613442,1752706240815,-460.0,0.00019277,2]
[372613444,1752706240825,-460.0,0.00019277,2]
[372613446,1752706240835,-460.0,0.00019277,2]
[372613448,1752706240844,-460.0,0.00019277,2]
[372613451,1752706240859,-460.0,0.00019277,2]
[372613453,1752706240868,-460.0,0.00019277,2]
[372613455,1752706240878,-460.0,0.00019277,2]
[372613457,1752706240889,-460.0,0.00019278,2]
[372613459,1752706240898,-460.0,0.00019278,2]
[372613461,1752706240908,-460.0,0.00019278,2]
[372613463,1752706240918,-670.56,0.00019278,2]
[372613465,1752706240928,-426.66,0.00019279,2]
[372613467,1752706240938,-460.0,0.00019279,2]
[372613469,1752706240950,-460.0,0.00019279,2]
[372613471,1752706240960,-460.0,0.00019279,2]
[372613473,1752706240969,-460.0,0.00019279,2]
[372613475,1752706240979,-460.0,0.00019279,2]
[372613477,1752706240994,-460.0,0.00019279,2]
[372613479,1752706241004,-460.0,0.00019279,2]
[372613481,1752706241013,-1152.93,0.0001928,2]
[372613483,1752706241023,-460.0,0.0001928,2]
[372613485,1752706241032,-460.0,0.00019282,2]
[372613487,1752706241043,-460.0,0.00019282,2]
[372613489,1752706241053,-460.0,0.00019282,2]
[372613491,1752706241063,-460.0,0.00019282,2]
[372613493,1752706241073,-620.34,0.00019282,2]
[372613495,1752706241083,-460.0,0.00019282,2]
[372613497,1752706241092,-460.0,0.00019283,2]
[372613499,1752706241102,-1000.0,0.00019321,2]
[372613501,1752706241111,-1000.0,0.00019321,2]
[372613503,1752706241121,-1000.0,0.00019321,2]
[372613505,1752706241130,-397.40443614,0.00019343,2]
[372613507,1752706241140,-175.01,0.00019375,3]
[372613509,1752706241150,-500.0,0.00019375,2]
[372613511,1752706241160,-500.0,0.00019385,2]
[372613513,1752706241169,-525.04,0.00019394,3]
[372613515,1752706241179,-500.0,0.00019404,2]
[372613517,1752706241189,-350.01,0.00019417,3]
[372613519,1752706241199,-498.21,0.00019546,3]
[372613521,1752706241208,-166.07,0.00019547,3]
[372613523,1752706241218,-460.0,0.00019549,2]
[372613525,1752706241229,-460.0,0.0001955,2]
[372613527,1752706241243,-460.0,0.0001955,2]
[372613529,1752706241253,-839.01,0.0001955,2]
[372613531,1752706241263,-460.0,0.0001955,2]
[372613533,1752706241273,-460.0,0.0001955,2]
[372613535,1752706241283,-460.0,0.0001955,2]
[372613538,1752706241292,-460.0,0.0001955,2]
[372613540,1752706241302,-460.0,0.00019551,2]
[372613541,1752706241312,-460.0,0.00019551,2]
[372613543,1752706241322,-460.0,0.00019551,2]
[372613546,1752706241332,-460.0,0.00019551,2]
[372613548,1752706241341,-460.0,0.00019551,2]
[372613549,1752706241350,-460.0,0.00019551,2]
[372613551,1752706241360,-460.0,0.00019551,2]
[372613553,1752706241369,-460.0,0.00019551,2]
[372613556,1752706241379,-460.0,0.00019552,2]
[372613558,1752706241388,-460.0,0.00019552,2]
[372613560,1752706241398,-670.56,0.00019552,2]
[372613562,1752706241407,-460.0,0.00019553,2]
[372613564,1752706241418,-460.0,0.00019553,2]
[372613566,1752706241427,-460.0,0.00019553,2]
[372613568,1752706241441,-460.0,0.00019553,2]
[372613570,1752706241451,-460.0,0.00019553,2]
[372613572,1752706241461,-460.0,0.00019553,2]
[372613574,1752706241470,-460.0,0.00019553,2]
[372613576,1752706241480,-1152.93,0.00019554,2]
[372613578,1752706241490,-460.0,0.00019554,2]
[372613580,1752706241500,-460.0,0.00019556,2]
[372613582,1752706241509,-460.0,0.00019556,2]
[372613584,1752706241518,-460.0,0.00019556,2]
[372613586,1752706241528,-460.0,0.00019556,2]
[372613588,1752706241537,-620.34,0.00019556,2]
[372613590,1752706241547,-460.0,0.00019556,2]
[372613592,1752706241557,-460.0,0.00019557,2]
[372613594,1752706241568,-664.26,0.00019568,3]
[372613596,1752706241577,-332.13,0.00019568,3]
[372613598,1752706241587,-736.77192659,0.00019652,2]
[372613600,1752706241596,-1328.52,0.00019816,3]
[372613602,1752706241606,-460.0,0.00019823,2]
[372613604,1752706241616,-460.0,0.00019824,2]
[372613620,1752706241761,-468.69,0.00019824,2]
[372613623,1752706241788,-839.01,0.00019824,2]
[372613625,1752706241798,-460.0,0.00019824,2]
[372613627,1752706241807,-460.0,0.00019824,2]
[372613629,1752706241816,-460.0,0.00019824,2]
[372613631,1752706241825,-460.0,0.00019824,2]
[372613632,1752706241834,-460.0,0.00019825,2]
[372613633,1752706241844,-376.85,0.00019825,2]
[372613634,1752706241853,-460.0,0.00019825,2]
[372613635,1752706241863,-460.0,0.00019825,2]
[372613636,1752706241873,-460.0,0.00019825,2]
[372613637,1752706241882,-318.45,0.00019825,2]
[372613638,1752706241891,-575.22,0.00019826,2]
[372613639,1752706242108,-460.0,0.00019826,2]
[372613641,1752706242118,-670.56,0.00019826,2]
[372613643,1752706242127,-460.0,0.00019827,2]
[372613645,1752706242137,-460.0,0.00019827,2]
[372613647,1752706242146,-460.0,0.00019827,2]
[372613649,1752706242156,-460.0,0.00019827,2]
[372613651,1752706242165,-460.0,0.00019827,2]
[372613653,1752706242175,-460.0,0.00019827,2]
[372613655,1752706242184,-460.0,0.00019827,2]
[372613657,1752706242194,-1152.93,0.00019828,2]
[372613659,1752706242204,-460.0,0.00019828,2]
[372613661,1752706242214,-460.0,0.0001983,2]
[372613663,1752706242223,-460.0,0.0001983,2]
[372613665,1752706242236,-620.34,0.0001983,2]
[372613667,1752706242246,-460.0,0.0001983,2]
[372613669,1752706242256,-460.0,0.00019831,2]
[372613671,1752706242268,-1500.0,0.00019868,2]
[372613673,1752706242279,-500.0,0.00019868,2]
[372613675,1752706242288,-1500.0,0.00019868,2]
[372613677,1752706242298,-848.83255712,0.000199,2]
[372613679,1752706242308,-1000.0,0.00019923,2]
[372613681,1752706242319,-1000.0,0.00019938,2]
[372613683,1752706242328,-290.6603466,0.00019952,2]
[372613685,1752706242338,-1595.97908031,0.00019989,2]
[372613687,1752706242347,-10046.30443164,0.00019989,2]
[372613689,1752706242357,-1169.66967033,0.0002,2]
[372613691,1752706242367,-3546.5465558,0.0002,20]
[372613693,1752706242376,-1293.99017771,0.0002,5]
[372613695,1752706242385,-307.0,0.0002,2]
[372613697,1752706242395,-799.99233525,0.0002,2]
[372613699,1752706242405,-14300.23978458,0.0002,2]
[372613701,1752706242414,-460.0,0.00020097,2]
[372613703,1752706242424,-460.0,0.00020098,2]
[372613705,1752706242433,-839.01,0.00020098,2]
[372613707,1752706242444,-460.0,0.00020098,2]
[372613709,1752706242454,-460.0,0.00020098,2]
[372613711,1752706242463,-460.0,0.00020098,2]
[372613713,1752706242473,-553.16,0.00020098,2]
[372613715,1752706242483,-460.0,0.00020099,2]
[372613718,1752706242492,-152.12,0.00020099,2]
[372613719,1752706242502,-594.65627561,0.00020099,2]
[372613722,1752706242511,-598.71,0.00020099,2]
[372613724,1752706242521,-460.0,0.000201,2]
[372613726,1752706242531,-670.56,0.000201,2]
[372613728,1752706242541,-460.0,0.00020101,2]
[372613730,1752706242550,-460.0,0.00020101,2]
[372613732,1752706242560,-460.0,0.00020101,2]
[372613734,1752706242570,-460.0,0.00020101,2]
[372613736,1752706242579,-460.0,0.00020101,2]
[372613738,1752706242589,-460.0,0.00020101,2]
[372613740,1752706242598,-460.0,0.00020101,2]
[372613742,1752706242607,-1152.93,0.00020102,2]
[372613744,1752706242616,-460.0,0.00020102,2]
[372613746,1752706242625,-460.0,0.00020104,2]
[372613748,1752706242635,-460.0,0.00020104,2]
[372613750,1752706242646,-620.34,0.00020104,2]
[372613752,1752706242655,-460.0,0.00020104,2]
[372613754,1752706242665,-848.83255712,0.00020107,2]
[372613756,1752706242675,-271.208512,0.00020187,2]
[372613758,1752706242684,-160.0,0.0002025,2]
[372613760,1752706242695,-848.83255712,0.00020314,3]
[372613762,1752706242705,-1625.73065509,0.00020358,2]
[372613764,1752706242715,-460.0,0.00020371,2]
[372613766,1752706242725,-460.0,0.00020372,2]
[372613768,1752706242735,-839.01,0.00020372,2]
[372613770,1752706242744,-460.0,0.00020372,2]
[372613772,1752706242754,-460.0,0.00020372,2]
[372613774,1752706242763,-460.0,0.00020372,2]
[372613776,1752706242773,-460.0,0.00020373,2]
[372613778,1752706242782,-474.12,0.00020374,2]
[372613780,1752706242792,-670.56,0.00020374,2]
[372613782,1752706242801,-460.0,0.00020375,2]
[372613785,1752706242811,-460.0,0.00020375,2]
[372613788,1752706242821,-460.0,0.00020375,2]
[372613790,1752706242830,-367.08452644,0.00020375,2]
[372613792,1752706242840,-1152.93,0.00020376,2]
[372613794,1752706242849,-460.0,0.00020376,2]